[Event "*** SCC Grand Prix: Titled Tuesday Blitz"]
[Site "Chess.com"]
[Date "2020.06.23"]
[Round "10"]
[White "BillieKimbah"]
[Black "viditchess"]
[Result "1-0"]
[WhiteElo "2890"]
[BlackElo "3016"]
[TimeControl "180+1"]
[EndTime "11:58:32 PDT"]
[Termination "BillieKimbah won by resignation"]

1. d4 {[%clk 0:03:00.9]} 1... Nf6 {[%clk 0:02:59.8]} 2. Nf3 {[%clk 0:03:00.9]}
2... d5 {[%clk 0:02:59.7]} 3. Bg5 {[%clk 0:03:01.3]} 3... Ne4 {[%clk 0:02:58.8]}
4. Bf4 {[%clk 0:03:01.5]} 4... Bf5 {[%clk 0:02:55.1]} 5. e3 {[%clk 0:03:00.3]}
5... e6 {[%clk 0:02:55.4]} 6. Nbd2 {[%clk 0:02:59.2]} 6... Bd6 {[%clk
0:02:55.4]} 7. Bd3 {[%clk 0:02:50.8]} 7... Bxf4 {[%clk 0:02:49.2]} 8. exf4
{[%clk 0:02:51.7]} 8... Nd6 {[%clk 0:02:49.8]} 9. Qe2 {[%clk 0:02:46.4]} 9...
O-O {[%clk 0:02:49.1]} 10. O-O {[%clk 0:02:45.1]} 10... Nd7 {[%clk 0:02:48.4]}
11. c3 {[%clk 0:02:43.6]} 11... c5 {[%clk 0:02:48.1]} 12. Bxf5 {[%clk 0:02:38]}
12... Nxf5 {[%clk 0:02:48]} 13. dxc5 {[%clk 0:02:38.6]} 13... Nxc5 {[%clk
0:02:47.8]} 14. Nb3 {[%clk 0:02:38.9]} 14... Ne4 {[%clk 0:02:42.5]} 15. Nbd4
{[%clk 0:02:35.8]} 15... Nfd6 {[%clk 0:02:41.4]} 16. g3 {[%clk 0:02:33.6]} 16...
Qc7 {[%clk 0:02:37.2]} 17. Rfe1 {[%clk 0:02:30.5]} 17... Rfe8 {[%clk 0:02:34.8]}
18. h4 {[%clk 0:02:30.3]} 18... Rad8 {[%clk 0:02:11.6]} 19. Rad1 {[%clk
0:02:25.1]} 19... Nc4 {[%clk 0:02:08.9]} 20. Ng5 {[%clk 0:02:20.2]} 20... Nf6
{[%clk 0:02:05.3]} 21. Rc1 {[%clk 0:02:15.4]} 21... a6 {[%clk 0:02:05]} 22. Ngf3
{[%clk 0:02:08.5]} 22... Ne4 {[%clk 0:02:03.2]} 23. Ng5 {[%clk 0:02:08.6]} 23...
Nf6 {[%clk 0:01:59.2]} 24. Ngf3 {[%clk 0:02:08.7]} 24... b5 {[%clk 0:01:59.5]}
25. Ne5 {[%clk 0:02:06.4]} 25... Rc8 {[%clk 0:01:56.8]} 26. Nd3 {[%clk
0:02:00.4]} 26... Qb6 {[%clk 0:01:54.9]} 27. Kg2 {[%clk 0:01:38]} 27... a5
{[%clk 0:01:53.8]} 28. a3 {[%clk 0:01:37.9]} 28... Nd6 {[%clk 0:01:40.1]} 29. f3
{[%clk 0:01:36.3]} 29... Rc4 {[%clk 0:01:33.3]} 30. Ne5 {[%clk 0:01:35.6]} 30...
Rc7 {[%clk 0:01:33.3]} 31. Nd3 {[%clk 0:01:27.7]} 31... Nc4 {[%clk 0:01:11.5]}
32. Rcd1 {[%clk 0:01:26.5]} 32... Rce7 {[%clk 0:01:04.5]} 33. Ne5 {[%clk
0:01:19.3]} 33... Rc8 {[%clk 0:00:59.8]} 34. Nd3 {[%clk 0:01:19]} 34... Ree8
{[%clk 0:00:59.8]} 35. Qf2 {[%clk 0:01:13.6]} 35... Qb7 {[%clk 0:00:56.3]} 36.
Nb3 {[%clk 0:01:08.4]} 36... Nd7 {[%clk 0:00:49.7]} 37. Nd4 {[%clk 0:01:06.1]}
37... Qb6 {[%clk 0:00:46.9]} 38. h5 {[%clk 0:01:05.9]} 38... h6 {[%clk
0:00:46.2]} 39. g4 {[%clk 0:01:06.4]} 39... Qb8 {[%clk 0:00:42.1]} 40. Qg3
{[%clk 0:01:02.9]} 40... Nf6 {[%clk 0:00:22.8]} 41. Re2 {[%clk 0:01:01.2]} 41...
b4 {[%clk 0:00:17.9]} 42. axb4 {[%clk 0:00:58.6]} 42... axb4 {[%clk 0:00:18.8]}
43. Nxb4 {[%clk 0:00:59]} 43... Qd6 {[%clk 0:00:19]} 44. Nd3 {[%clk 0:00:57.8]}
44... Rb8 {[%clk 0:00:19.3]} 45. b3 {[%clk 0:00:53.3]} 45... Na5 {[%clk
0:00:19.1]} 46. b4 {[%clk 0:00:50.9]} 46... Nc4 {[%clk 0:00:19]} 47. Rh1 {[%clk
0:00:48.1]} 47... Nh7 {[%clk 0:00:18.4]} 48. Rhe1 {[%clk 0:00:46.3]} 48... Nf6
{[%clk 0:00:15.9]} 49. f5 {[%clk 0:00:45.8]} 49... Qxg3+ {[%clk 0:00:07.8]} 50.
Kxg3 {[%clk 0:00:46.7]} 50... exf5 {[%clk 0:00:07.1]} 51. Rxe8+ {[%clk
0:00:46.1]} 51... Nxe8 {[%clk 0:00:08]} 52. Nxf5 {[%clk 0:00:45.6]} 52... Kf8
{[%clk 0:00:08.5]} 53. Nc5 {[%clk 0:00:43.1]} 53... Nf6 {[%clk 0:00:08.9]} 54.
Ra1 {[%clk 0:00:36.3]} 54... Re8 {[%clk 0:00:07.1]} 55. Ra7 {[%clk 0:00:35.1]}
55... Ne5 {[%clk 0:00:03.8]} 56. b5 {[%clk 0:00:33.1]} 56... Rc8 {[%clk
0:00:03.5]} 57. b6 {[%clk 0:00:27.4]} 57... Rxc5 {[%clk 0:00:03]} 58. Ra8+
{[%clk 0:00:27.4]} 58... Ne8 {[%clk 0:00:02.3]} 59. b7 {[%clk 0:00:24]} 59...
Nd7 {[%clk 0:00:01.1]} 60. Rd8 {[%clk 0:00:21.7]} 60... Rc7 {[%clk 0:00:01.1]}
61. Rxd7 {[%clk 0:00:20.8]} 61... Rxd7 {[%clk 0:00:02]} 62. b8=Q {[%clk
0:00:20.5]} 1-0

[Event "*** SCC Grand Prix: Titled Tuesday Blitz"]
[Site "Chess.com"]
[Date "2020.06.23"]
[Round "10"]
[White "m_ezat"]
[Black "chigorin28"]
[Result "0-1"]
[WhiteElo "2535"]
[BlackElo "2443"]
[TimeControl "180+1"]
[EndTime "11:58:45 PDT"]
[Termination "chigorin28 won by resignation"]

1. d4 {[%clk 0:00:37.9]} 1... Nf6 {[%clk 0:02:57.6]} 2. c4 {[%clk 0:00:38]} 2...
c5 {[%clk 0:02:54.9]} 3. d5 {[%clk 0:00:37.3]} 3... b5 {[%clk 0:02:55.4]} 4.
cxb5 {[%clk 0:00:37.2]} 4... a6 {[%clk 0:02:56]} 5. Nc3 {[%clk 0:00:37.9]} 5...
g6 {[%clk 0:02:54]} 6. e4 {[%clk 0:00:38.2]} 6... d6 {[%clk 0:02:54]} 7. bxa6
{[%clk 0:00:37.3]} 7... Bxa6 {[%clk 0:02:54.2]} 8. Bxa6 {[%clk 0:00:37.6]} 8...
Nxa6 {[%clk 0:02:54.8]} 9. Nf3 {[%clk 0:00:38.1]} 9... Bg7 {[%clk 0:02:55]} 10.
O-O {[%clk 0:00:38.7]} 10... O-O {[%clk 0:02:55.1]} 11. e5 {[%clk 0:00:39.3]}
11... dxe5 {[%clk 0:02:53.2]} 12. Nxe5 {[%clk 0:00:39]} 12... Nb4 {[%clk
0:02:48.6]} 13. Re1 {[%clk 0:00:38.4]} 13... Nfxd5 {[%clk 0:02:45.8]} 14. Nxd5
{[%clk 0:00:37.9]} 14... Qxd5 {[%clk 0:02:38.5]} 15. Qxd5 {[%clk 0:00:37.8]}
15... Nxd5 {[%clk 0:02:39.4]} 16. Nc6 {[%clk 0:00:34.6]} 16... e6 {[%clk
0:02:32.5]} 17. a4 {[%clk 0:00:31.2]} 17... Rfc8 {[%clk 0:02:32.3]} 18. Ne5
{[%clk 0:00:29.7]} 18... Nb4 {[%clk 0:02:15.2]} 19. Re2 {[%clk 0:00:26.9]} 19...
Rd8 {[%clk 0:02:02.6]} 20. Bg5 {[%clk 0:00:22.7]} 20... f6 {[%clk 0:01:58.4]}
21. Bh4 {[%clk 0:00:22.7]} 21... fxe5 {[%clk 0:01:55.8]} 22. Bxd8 {[%clk
0:00:21.8]} 22... Rxd8 {[%clk 0:01:55]} 23. a5 {[%clk 0:00:22.4]} 23... Rd6
{[%clk 0:01:49]} 24. g3 {[%clk 0:00:21.2]} 24... Kf7 {[%clk 0:01:42]} 25. Kg2
{[%clk 0:00:21.4]} 25... Kf6 {[%clk 0:01:42.4]} 26. Re4 {[%clk 0:00:21.1]} 26...
Ra6 {[%clk 0:01:35.9]} 27. Rc4 {[%clk 0:00:20.5]} 27... Bf8 {[%clk 0:01:35.1]}
28. Ra3 {[%clk 0:00:19.3]} 28... Bd6 {[%clk 0:01:34.2]} 29. Rf3+ {[%clk
0:00:18.6]} 29... Ke7 {[%clk 0:01:34.7]} 30. Rh4 {[%clk 0:00:18.4]} 30... h5
{[%clk 0:01:33]} 31. Ra3 {[%clk 0:00:17.3]} 31... Nc6 {[%clk 0:01:30.6]} 32.
Rha4 {[%clk 0:00:17]} 32... Bc7 {[%clk 0:01:26.8]} 33. Rc3 {[%clk 0:00:16.8]}
33... Kd6 {[%clk 0:01:25.4]} 34. g4 {[%clk 0:00:14.3]} 34... Nd4 {[%clk
0:01:20.2]} 35. gxh5 {[%clk 0:00:13.5]} 35... gxh5 {[%clk 0:01:20.6]} 36. Rh3
{[%clk 0:00:10.5]} 36... Ne2 {[%clk 0:01:14.2]} 37. Kf1 {[%clk 0:00:09.3]} 37...
Nf4 {[%clk 0:01:14.2]} 38. Rha3 {[%clk 0:00:09.2]} 38... Kc6 {[%clk 0:01:14.2]}
39. Re3 {[%clk 0:00:07.7]} 39... Kb5 {[%clk 0:01:13.6]} 40. b3 {[%clk
0:00:04.5]} 40... Rd6 {[%clk 0:01:10.2]} 41. a6 {[%clk 0:00:03.3]} 41... Rxa6
{[%clk 0:01:05.8]} 42. Rxa6 {[%clk 0:00:02.9]} 42... Kxa6 {[%clk 0:01:06.7]} 43.
h4 {[%clk 0:00:02.5]} 43... Kb5 {[%clk 0:01:06.6]} 44. Re4 {[%clk 0:00:02.6]}
44... Kc6 {[%clk 0:00:59.7]} 45. f3 {[%clk 0:00:03.2]} 45... Kd5 {[%clk
0:00:59.9]} 46. Kf2 {[%clk 0:00:03.8]} 46... Bd8 {[%clk 0:00:58.4]} 47. Kg3
{[%clk 0:00:04.4]} 47... Ng6 {[%clk 0:00:56.5]} 48. Ra4 {[%clk 0:00:05]} 48...
Bxh4+ {[%clk 0:00:56.2]} 49. Kh3 {[%clk 0:00:03.2]} 49... Bg5 {[%clk 0:00:54.1]}
50. Ra8 {[%clk 0:00:04]} 50... Nf4+ {[%clk 0:00:54.4]} 51. Kg3 {[%clk
0:00:04.7]} 51... h4+ {[%clk 0:00:54.3]} 52. Kg4 {[%clk 0:00:05.3]} 52... Be7
{[%clk 0:00:53.5]} 53. Re8 {[%clk 0:00:04.7]} 53... Kd6 {[%clk 0:00:53.1]} 54.
Ra8 {[%clk 0:00:03.6]} 54... Ne2 {[%clk 0:00:52.1]} 55. Ra6+ {[%clk 0:00:03.6]}
55... Kd7 {[%clk 0:00:52.6]} 56. Ra7+ {[%clk 0:00:03.8]} 56... Ke8 {[%clk
0:00:53]} 57. Ra8+ {[%clk 0:00:03.3]} 57... Kf7 {[%clk 0:00:53.3]} 58. Rb8
{[%clk 0:00:03]} 58... Nd4 {[%clk 0:00:53.4]} 59. b4 {[%clk 0:00:02.8]} 59...
cxb4 {[%clk 0:00:52.8]} 60. Rb7 {[%clk 0:00:02.8]} 60... Kf6 {[%clk 0:00:50.7]}
61. Kxh4 {[%clk 0:00:01.4]} 61... Nxf3+ {[%clk 0:00:50.6]} 62. Kg4 {[%clk
0:00:02.2]} 62... Nd4 {[%clk 0:00:50.7]} 63. Kg3 {[%clk 0:00:02.4]} 63... Bd6
{[%clk 0:00:47.8]} 64. Kg4 {[%clk 0:00:02.9]} 64... Bf8 {[%clk 0:00:46]} 65. Rb6
{[%clk 0:00:02.9]} 65... Nf5 {[%clk 0:00:44.1]} 66. Rb8 {[%clk 0:00:03.4]} 66...
Be7 {[%clk 0:00:43.8]} 67. Kf3 {[%clk 0:00:04]} 67... Nd6 {[%clk 0:00:41.3]} 68.
Rxb4 {[%clk 0:00:03.1]} 68... e4+ {[%clk 0:00:40.6]} 69. Kg4 {[%clk 0:00:03.7]}
69... Ke5 {[%clk 0:00:40.1]} 70. Rb8 {[%clk 0:00:04.3]} 70... Kd5 {[%clk
0:00:37.2]} 71. Kf4 {[%clk 0:00:04.9]} 71... Bf6 {[%clk 0:00:36.6]} 72. Ra8
{[%clk 0:00:05.4]} 72... Be5+ {[%clk 0:00:37]} 73. Ke3 {[%clk 0:00:05.7]} 73...
Bd4+ {[%clk 0:00:37.4]} 74. Ke2 {[%clk 0:00:06.4]} 74... Bc5 {[%clk 0:00:37.9]}
75. Ra6 {[%clk 0:00:06.5]} 75... Nc4 {[%clk 0:00:36.9]} 76. Ra8 {[%clk
0:00:07.2]} 76... Nd6 {[%clk 0:00:36.1]} 77. Ra1 {[%clk 0:00:05.8]} 77... Nf5
{[%clk 0:00:36.3]} 78. Rd1+ {[%clk 0:00:06.3]} 78... Ke5 {[%clk 0:00:36.7]} 79.
Rc1 {[%clk 0:00:05]} 79... Nd4+ {[%clk 0:00:36.9]} 80. Ke3 {[%clk 0:00:04.8]}
80... Nb3+ {[%clk 0:00:36.4]} 81. Rxc5+ {[%clk 0:00:03.4]} 81... Nxc5 {[%clk
0:00:36.5]} 82. Kd2 {[%clk 0:00:04.1]} 82... Kd4 {[%clk 0:00:36.7]} 0-1

[Event "*** SCC Grand Prix: Titled Tuesday Blitz"]
[Site "Chess.com"]
[Date "2020.06.23"]
[Round "10"]
[White "angryhorse9"]
[Black "Escanor89"]
[Result "0-1"]
[WhiteElo "2446"]
[BlackElo "2561"]
[TimeControl "180+1"]
[EndTime "11:58:46 PDT"]
[Termination "Escanor89 won by checkmate"]

1. e4 {[%clk 0:03:00.4]} 1... c5 {[%clk 0:03:00]} 2. Nf3 {[%clk 0:02:58.6]} 2...
d6 {[%clk 0:03:00.1]} 3. Bb5+ {[%clk 0:02:57.6]} 3... Bd7 {[%clk 0:02:56.6]} 4.
Bxd7+ {[%clk 0:02:57]} 4... Nxd7 {[%clk 0:02:56.5]} 5. c4 {[%clk 0:02:53.8]}
5... Ngf6 {[%clk 0:02:55.9]} 6. Nc3 {[%clk 0:02:54.4]} 6... Rc8 {[%clk
0:02:55.7]} 7. O-O {[%clk 0:02:54]} 7... e6 {[%clk 0:02:54]} 8. b3 {[%clk
0:02:53.6]} 8... a6 {[%clk 0:02:45.6]} 9. Bb2 {[%clk 0:02:49.5]} 9... Be7 {[%clk
0:02:40.2]} 10. d4 {[%clk 0:02:49.6]} 10... cxd4 {[%clk 0:02:39.2]} 11. Nxd4
{[%clk 0:02:50.1]} 11... O-O {[%clk 0:02:39.7]} 12. Rc1 {[%clk 0:02:50.7]} 12...
Qa5 {[%clk 0:02:38.2]} 13. Qd2 {[%clk 0:02:46.8]} 13... Rfe8 {[%clk 0:02:36.4]}
14. Rfd1 {[%clk 0:02:46]} 14... Qh5 {[%clk 0:02:14.4]} 15. f3 {[%clk 0:02:43.4]}
15... Qc5 {[%clk 0:02:06.5]} 16. Kh1 {[%clk 0:02:41.4]} 16... Ne5 {[%clk
0:02:05.4]} 17. Nde2 {[%clk 0:02:33.2]} 17... Ng6 {[%clk 0:02:01.1]} 18. Nf4
{[%clk 0:02:24.6]} 18... Nxf4 {[%clk 0:01:50.5]} 19. Qxf4 {[%clk 0:02:23.4]}
19... h6 {[%clk 0:01:49.7]} 20. Qd2 {[%clk 0:02:05.6]} 20... Red8 {[%clk
0:01:47.3]} 21. Na4 {[%clk 0:01:56.5]} 21... Qc6 {[%clk 0:01:37.7]} 22. Nc3
{[%clk 0:01:52.7]} 22... Nd7 {[%clk 0:01:31.2]} 23. Ne2 {[%clk 0:01:26.4]} 23...
Qc7 {[%clk 0:01:24.9]} 24. Bc3 {[%clk 0:01:20.6]} 24... Nc5 {[%clk 0:01:19.7]}
25. Nd4 {[%clk 0:01:18.4]} 25... Bf8 {[%clk 0:01:08.1]} 26. Ba5 {[%clk
0:01:06.1]} 26... b6 {[%clk 0:01:06.5]} 27. Bc3 {[%clk 0:01:06.3]} 27... Nd7
{[%clk 0:01:03.4]} 28. Bb2 {[%clk 0:01:04]} 28... Qb7 {[%clk 0:01:01.2]} 29. Ne2
{[%clk 0:01:03.5]} 29... Nc5 {[%clk 0:00:56.7]} 30. Nf4 {[%clk 0:01:03.4]} 30...
b5 {[%clk 0:00:49.1]} 31. cxb5 {[%clk 0:00:57.6]} 31... axb5 {[%clk 0:00:49.3]}
32. Nh5 {[%clk 0:00:56.4]} 32... e5 {[%clk 0:00:42.2]} 33. Ng3 {[%clk
0:00:50.1]} 33... Ne6 {[%clk 0:00:39.3]} 34. Rxc8 {[%clk 0:00:43]} 34... Qxc8
{[%clk 0:00:38.1]} 35. Nf5 {[%clk 0:00:42.6]} 35... Qa6 {[%clk 0:00:36.9]} 36.
a3 {[%clk 0:00:36.3]} 36... Qb7 {[%clk 0:00:25.7]} 37. Ne3 {[%clk 0:00:31.8]}
37... Nc5 {[%clk 0:00:20.5]} 38. b4 {[%clk 0:00:30.1]} 38... Ne6 {[%clk
0:00:20.1]} 39. Nd5 {[%clk 0:00:29.8]} 39... Rc8 {[%clk 0:00:20.3]} 40. Qd3
{[%clk 0:00:26.4]} 40... Rc6 {[%clk 0:00:17]} 41. h3 {[%clk 0:00:24.3]} 41...
Rc4 {[%clk 0:00:17.1]} 42. Kh2 {[%clk 0:00:23.9]} 42... Qc6 {[%clk 0:00:16.5]}
43. Rd2 {[%clk 0:00:23.3]} 43... h5 {[%clk 0:00:14.7]} 44. h4 {[%clk 0:00:21.8]}
44... g6 {[%clk 0:00:14.8]} 45. Rd1 {[%clk 0:00:20.7]} 45... Kg7 {[%clk
0:00:14.7]} 46. Rd2 {[%clk 0:00:17.3]} 46... Nd4 {[%clk 0:00:14.7]} 47. Bxd4
{[%clk 0:00:16.2]} 47... Rxd4 {[%clk 0:00:14.9]} 48. Qe2 {[%clk 0:00:16.7]}
48... Kh7 {[%clk 0:00:13.5]} 49. Rxd4 {[%clk 0:00:16.7]} 49... exd4 {[%clk
0:00:13.2]} 50. Qd3 {[%clk 0:00:17.4]} 50... Qc4 {[%clk 0:00:11.5]} 51. Qd1
{[%clk 0:00:14.1]} 51... Bg7 {[%clk 0:00:10.5]} 52. Nf4 {[%clk 0:00:13.3]} 52...
Be5 {[%clk 0:00:10.1]} 53. g3 {[%clk 0:00:13.2]} 53... Bxf4 {[%clk 0:00:09.6]}
54. gxf4 {[%clk 0:00:14.1]} 54... d3 {[%clk 0:00:10]} 55. Kg3 {[%clk 0:00:14.2]}
55... Qc2 {[%clk 0:00:10.1]} 56. Qg1 {[%clk 0:00:14.6]} 56... d2 {[%clk
0:00:10.1]} 57. Qa7 {[%clk 0:00:15]} 57... Qc4 {[%clk 0:00:08.6]} 58. f5 {[%clk
0:00:14]} 58... d1=Q {[%clk 0:00:07.7]} 59. fxg6+ {[%clk 0:00:14.4]} 59... Kxg6
{[%clk 0:00:07.6]} 60. Qb8 {[%clk 0:00:15.3]} 60... Qg1+ {[%clk 0:00:07.4]} 61.
Kf4 {[%clk 0:00:16]} 61... Qh2+ {[%clk 0:00:07.2]} 62. Ke3 {[%clk 0:00:15.2]}
62... Qc3# {[%clk 0:00:07.3]} 0-1

[Event "*** SCC Grand Prix: Titled Tuesday Blitz"]
[Site "Chess.com"]
[Date "2020.06.23"]
[Round "10"]
[White "MYMChessAcademy"]
[Black "C_K_G"]
[Result "1/2-1/2"]
[WhiteElo "2179"]
[BlackElo "1921"]
[TimeControl "180+1"]
[EndTime "11:58:47 PDT"]
[Termination "Game drawn - insufficient material"]

1. e4 {[%clk 0:03:00.9]} 1... c5 {[%clk 0:02:59.6]} 2. Nf3 {[%clk 0:02:58.5]}
2... d6 {[%clk 0:03:00.5]} 3. d4 {[%clk 0:02:57.8]} 3... cxd4 {[%clk 0:03:01.4]}
4. Nxd4 {[%clk 0:02:58.3]} 4... Nf6 {[%clk 0:03:01.7]} 5. Nc3 {[%clk 0:02:57.9]}
5... a6 {[%clk 0:03:02.1]} 6. Be2 {[%clk 0:02:56.9]} 6... e5 {[%clk 0:03:02.2]}
7. Nb3 {[%clk 0:02:56.2]} 7... Be7 {[%clk 0:03:02.5]} 8. Be3 {[%clk 0:02:55.9]}
8... Be6 {[%clk 0:03:02.1]} 9. g4 {[%clk 0:02:55.5]} 9... h5 {[%clk 0:03:00.4]}
10. g5 {[%clk 0:02:50.1]} 10... Ng4 {[%clk 0:03:00.3]} 11. Bd2 {[%clk
0:02:44.4]} 11... Qb6 {[%clk 0:02:59.5]} 12. Bxg4 {[%clk 0:02:09]} 12... hxg4
{[%clk 0:02:55.7]} 13. Be3 {[%clk 0:02:07.6]} 13... Qc7 {[%clk 0:02:54.9]} 14.
Qd2 {[%clk 0:01:48.7]} 14... Nd7 {[%clk 0:02:48.9]} 15. O-O-O {[%clk 0:01:47.6]}
15... Nb6 {[%clk 0:02:43.7]} 16. g6 {[%clk 0:01:41.6]} 16... fxg6 {[%clk
0:02:38.4]} 17. Nd5 {[%clk 0:01:33.4]} 17... Bxd5 {[%clk 0:02:36.4]} 18. exd5
{[%clk 0:01:34.3]} 18... Nc4 {[%clk 0:02:36.1]} 19. Qd3 {[%clk 0:01:22.1]} 19...
Nxe3 {[%clk 0:02:28.9]} 20. Qxg6+ {[%clk 0:01:21.6]} 20... Kf8 {[%clk 0:02:27]}
21. fxe3 {[%clk 0:01:21.4]} 21... Rh6 {[%clk 0:02:14.8]} 22. Rdf1+ {[%clk
0:01:12.6]} 22... Bf6 {[%clk 0:02:13.9]} 23. Rxf6+ {[%clk 0:01:05.8]} 23... gxf6
{[%clk 0:02:11.9]} 24. Qxh6+ {[%clk 0:01:04.8]} 24... Qg7 {[%clk 0:02:12.8]} 25.
Qh4 {[%clk 0:00:56.1]} 25... Rc8 {[%clk 0:02:08.6]} 26. Rf1 {[%clk 0:00:55.1]}
26... Ke7 {[%clk 0:02:06.3]} 27. Rg1 {[%clk 0:00:46.1]} 27... Qg6 {[%clk
0:02:02.3]} 28. Qf2 {[%clk 0:00:40.4]} 28... Rc4 {[%clk 0:01:49.6]} 29. h3
{[%clk 0:00:38]} 29... f5 {[%clk 0:01:48.5]} 30. hxg4 {[%clk 0:00:32]} 30...
Rxg4 {[%clk 0:01:45.3]} 31. Rf1 {[%clk 0:00:28.6]} 31... f4 {[%clk 0:01:36.8]}
32. exf4 {[%clk 0:00:25.1]} 32... Rxf4 {[%clk 0:01:37.7]} 33. Qe2 {[%clk
0:00:25.2]} 33... Rxf1+ {[%clk 0:01:34.2]} 34. Qxf1 {[%clk 0:00:26.1]} 34... e4
{[%clk 0:01:29.7]} 35. Qe2 {[%clk 0:00:24.8]} 35... Qg1+ {[%clk 0:01:25.6]} 36.
Kd2 {[%clk 0:00:23.1]} 36... Qg5+ {[%clk 0:01:03.3]} 37. Qe3 {[%clk 0:00:22.6]}
37... Qxd5+ {[%clk 0:01:02.8]} 38. Nd4 {[%clk 0:00:21]} 38... Kd7 {[%clk
0:00:59.5]} 39. Qh3+ {[%clk 0:00:20]} 39... Kc7 {[%clk 0:00:59]} 40. c3 {[%clk
0:00:19.5]} 40... Qc4 {[%clk 0:00:55.6]} 41. Ne6+ {[%clk 0:00:18.2]} 41... Kb6
{[%clk 0:00:51.4]} 42. Qe3+ {[%clk 0:00:17.3]} 42... Kc6 {[%clk 0:00:46.9]} 43.
Nd4+ {[%clk 0:00:14.6]} 43... Kc7 {[%clk 0:00:43.9]} 44. b3 {[%clk 0:00:14.2]}
44... Qd5 {[%clk 0:00:43.4]} 45. Kc2 {[%clk 0:00:13.3]} 45... b5 {[%clk
0:00:42.5]} 46. Qh6 {[%clk 0:00:13.1]} 46... Qe5 {[%clk 0:00:40.7]} 47. Qh7+
{[%clk 0:00:12.9]} 47... Kb6 {[%clk 0:00:40.9]} 48. Qh3 {[%clk 0:00:10.3]} 48...
e3 {[%clk 0:00:38.6]} 49. Qf1 {[%clk 0:00:09]} 49... Qh2+ {[%clk 0:00:33.9]} 50.
Qe2 {[%clk 0:00:09.6]} 50... Qf2 {[%clk 0:00:32.9]} 51. Kd3 {[%clk 0:00:06.9]}
51... Qg1 {[%clk 0:00:29.8]} 52. Qh5 {[%clk 0:00:06.6]} 52... Qb1+ {[%clk
0:00:21.6]} 53. Kxe3 {[%clk 0:00:06.1]} 53... Qxa2 {[%clk 0:00:20.1]} 54. Qh6
{[%clk 0:00:05.4]} 54... Qa3 {[%clk 0:00:18.9]} 55. Nf5 {[%clk 0:00:03.7]} 55...
Qc1+ {[%clk 0:00:18]} 56. Ke4 {[%clk 0:00:03.6]} 56... Qxh6 {[%clk 0:00:16]} 57.
Nxh6 {[%clk 0:00:04.5]} 57... a5 {[%clk 0:00:14.7]} 58. Nf5 {[%clk 0:00:05.4]}
58... a4 {[%clk 0:00:14.2]} 59. bxa4 {[%clk 0:00:05.8]} 59... bxa4 {[%clk
0:00:14.9]} 60. Kd3 {[%clk 0:00:05.3]} 60... Kc5 {[%clk 0:00:13.6]} 61. Kc2
{[%clk 0:00:05.5]} 61... Kc4 {[%clk 0:00:12.2]} 62. Kb2 {[%clk 0:00:05.5]} 62...
d5 {[%clk 0:00:12.2]} 63. Nd6+ {[%clk 0:00:05.7]} 63... Kc5 {[%clk 0:00:11.7]}
64. Nf5 {[%clk 0:00:06.6]} 64... Kc4 {[%clk 0:00:11.8]} 65. Ne3+ {[%clk
0:00:06.4]} 65... Kc5 {[%clk 0:00:12]} 66. Ka3 {[%clk 0:00:06.3]} 66... d4
{[%clk 0:00:12.3]} 67. cxd4+ {[%clk 0:00:05.4]} 67... Kxd4 {[%clk 0:00:13.2]}
68. Nf5+ {[%clk 0:00:05.8]} 68... Ke5 {[%clk 0:00:12.9]} 69. Ng3 {[%clk
0:00:06.7]} 69... Kf4 {[%clk 0:00:12.9]} 70. Ne2+ {[%clk 0:00:07.6]} 70... Ke3
{[%clk 0:00:13.2]} 71. Nc3 {[%clk 0:00:08.5]} 71... Kd3 {[%clk 0:00:13.2]} 72.
Nb5 {[%clk 0:00:09.2]} 72... Kc4 {[%clk 0:00:13.2]} 73. Nd6+ {[%clk 0:00:10.1]}
73... Kc5 {[%clk 0:00:13.4]} 74. Nf7 {[%clk 0:00:11]} 74... Kd5 {[%clk
0:00:13.5]} 75. Nh8 {[%clk 0:00:11.9]} 75... Ke6 {[%clk 0:00:13.2]} 76. Ng6
{[%clk 0:00:12.8]} 76... Kf6 {[%clk 0:00:13.3]} 77. Nh4 {[%clk 0:00:13.7]} 77...
Kg5 {[%clk 0:00:13]} 78. Nf3+ {[%clk 0:00:14.6]} 78... Kf4 {[%clk 0:00:13.6]}
79. Nd2 {[%clk 0:00:15.5]} 79... Ke3 {[%clk 0:00:14.2]} 80. Nc4+ {[%clk
0:00:15.9]} 80... Kd4 {[%clk 0:00:14]} 81. Nb6 {[%clk 0:00:16.8]} 81... Kc5
{[%clk 0:00:14.9]} 82. Nxa4+ {[%clk 0:00:17.7]} 1/2-1/2